bitfinex/quotes_BTCUSD_20250224
["timestamp","ask_amount","ask_price","bid_price","bid_amount"]
[1740418823775,0.52212107,95274.0,95273.0,0.0046992]
[1740418823979,0.52212107,95274.0,95273.0,0.0016992]
[1740418824089,0.52212107,95274.0,95273.0,0.0056992]
[1740418824519,0.52212107,95274.0,95273.0,0.0016992]
[1740418824701,0.52212107,95274.0,95273.0,0.0056992]
[1740418825174,0.52212107,95274.0,95273.0,0.0016992]
[1740418826863,0.41947538,95274.0,95273.0,0.0016992]
[1740418827096,0.00263538,95274.0,95273.0,0.0016992]
[1740418827315,0.15744,95274.0,95273.0,0.0016992]
[1740418827581,0.16092088,95274.0,95273.0,0.0016992]
[1740418827961,0.00348088,95274.0,95273.0,0.0016992]
[1740418828367,0.00348088,95274.0,95273.0,0.0036992]
[1740418828768,0.0008496,95274.0,95273.0,0.0036992]
[1740418829173,0.00347439,95274.0,95273.0,0.0036992]
[1740418829354,0.0008496,95274.0,95273.0,0.0036992]
[1740418830540,0.00348002,95274.0,95273.0,0.0036992]
[1740418830736,0.1582896,95274.0,95273.0,0.0036992]
[1740418830971,0.16092377,95274.0,95273.0,0.0036992]
[1740418831956,0.1620382,95274.0,95273.0,0.0036992]
[1740418833011,0.0045982,95274.0,95273.0,0.0036992]
[1740418833416,0.0008496,95274.0,95273.0,0.0036992]
[1740418833628,0.00396926,95274.0,95273.0,0.0036992]
[1740418833827,0.0008496,95274.0,95273.0,0.0026992]
[1740418834032,0.00396926,95274.0,95273.0,0.0026992]
[1740418834237,0.0008496,95274.0,95273.0,0.0026992]
[1740418834767,0.00396926,95274.0,95273.0,0.0026992]
[1740418834961,0.0008496,95274.0,95273.0,0.0036992]
[1740418835169,0.00396926,95274.0,95273.0,0.0036992]
[1740418835323,0.0008496,95274.0,95273.0,0.0036992]
[1740418835527,0.16140926,95274.0,95273.0,0.0036992]
[1740418835747,0.1582896,95274.0,95273.0,0.0036992]
[1740418835955,0.00397062,95274.0,95273.0,0.0036992]
[1740418842540,0.16141062,95274.0,95273.0,0.0036992]
[1740418842787,0.00397062,95274.0,95273.0,0.0036992]
[1740418845669,0.16141062,95274.0,95273.0,0.0036992]
[1740418846293,0.49355631,95274.0,95273.0,0.0036992]
[1740418846503,0.52395631,95274.0,95273.0,0.0036992]
[1740418847383,0.15748,95250.0,95249.0,0.0016996]
[1740418847795,0.16058283,95250.0,95249.0,0.0016996]
[1740418848614,0.16058283,95250.0,95249.0,0.00212982]
[1740418849312,0.16058283,95250.0,95249.0,0.00612982]
[1740418852042,0.31008283,95250.0,95249.0,0.01112982]
[1740418852252,0.39138283,95250.0,95249.0,0.01112982]
[1740418852774,0.31008283,95250.0,95249.0,0.01112982]
[1740418854014,0.31008283,95250.0,95249.0,0.00612982]
[1740418854210,0.31008283,95250.0,95249.0,0.00212982]
[1740418854415,0.209971,95252.0,95249.0,0.00312982]
[1740418854739,0.15748,95250.0,95249.0,0.00412982]
[1740418855210,0.16045406,95250.0,95249.0,0.00412982]
[1740418855952,0.16045406,95250.0,95249.0,0.00312982]
[1740418856153,0.16045406,95250.0,95249.0,0.00412982]
[1740418857484,0.16045406,95250.0,95249.0,0.00312982]
[1740418857825,0.16045406,95250.0,95249.0,0.00412982]
[1740418860977,0.41309975,95250.0,95249.0,0.00412982]
[1740418861178,0.41309975,95250.0,95221.0,0.046]
[1740418861179,0.157526,95222.0,95221.0,0.046]
[1740418861423,0.15,95245.0,95221.0,0.046]
[1740418861626,0.00294386,95222.0,95221.0,0.046]
[1740418861833,0.210014,95232.0,95221.0,0.046]
[1740418862003,0.15,95237.0,95221.0,0.046]
[1740418862342,0.157513,95230.0,95221.0,0.046]
[1740418862553,0.00282601,95236.0,95224.0,0.08408484]
[1740418862753,0.00270528,95229.0,95228.0,0.01454085]
[1740418862959,0.209981,95247.0,95230.0,0.01454085]
[1740418863177,0.01436149,95237.0,95231.0,0.157511]
[1740418863398,0.00271611,95246.0,95230.0,0.11718654]
[1740418863589,0.157495,95241.0,95230.0,0.11718654]
[1740418863819,0.014888,95246.0,95230.0,0.11718654]
[1740418864002,0.00271585,95240.0,95230.0,0.11718654]
[1740418864364,0.00271585,95240.0,95228.0,0.0489]
[1740418864365,0.157515,95229.0,95228.0,0.0489]
[1740418864582,0.00271585,95240.0,95228.0,0.0489]
[1740418864952,0.00270361,95229.0,95228.0,0.0489]
[1740418865133,0.08090383,95250.0,95228.0,0.0489]
[1740418865134,0.157507,95234.0,95228.0,0.0489]
[1740418865481,0.00271247,95233.0,95228.0,0.0549]
[1740418865965,0.00271247,95233.0,95230.0,0.003]
[1740418866504,0.15,95239.0,95230.0,0.003]
[1740418866751,0.157503,95236.0,95230.0,0.003]
[1740418867074,0.21271608,95238.0,95230.0,0.003]
[1740418867075,0.00271608,95238.0,95230.0,0.003]
[1740418867225,0.00271302,95235.0,95230.0,0.003]
[1740418867548,0.157503,95236.0,95228.0,0.0529]
[1740418867754,0.00271241,95235.0,95228.0,0.0519]
[1740418867985,0.00271241,95235.0,95230.0,0.002]
[1740418868117,0.20999,95243.0,95228.0,0.0519]
[1740418868118,0.00259878,95234.0,95228.0,0.0489]
[1740418868326,0.157503,95236.0,95228.0,0.0489]
[1740418868547,0.00260062,95235.0,95230.0,0.005]
[1740418868750,0.15,95239.0,95230.0,0.005]
[1740418868978,0.00260062,95234.0,95230.0,0.002]
[1740418869272,0.15,95239.0,95231.0,0.157511]
[1740418869474,0.22504666,95250.0,95232.0,0.11718654]
[1740418869475,0.00259301,95233.0,95232.0,0.11718654]
[1740418869679,0.01507266,95250.0,95249.0,0.286881]
[1740418869888,0.00010383,95250.0,95249.0,0.1294]
[1740418870349,0.00010383,95250.0,95249.0,0.24658654]
[1740418871344,0.00010383,95250.0,95249.0,0.25058654]
[1740418871872,0.00010383,95250.0,95249.0,0.25558654]
[1740418872000,0.15758383,95250.0,95249.0,0.1384]
[1740418872198,0.15758383,95250.0,95249.0,0.009]
[1740418872404,0.16029689,95250.0,95249.0,0.009]
[1740418873287,0.00281689,95250.0,95249.0,0.34108754]
[1740418873490,0.00281689,95250.0,95249.0,0.50707238]
[1740418873663,0.00010383,95250.0,95249.0,0.50707238]
[1740418874066,0.00010383,95250.0,95249.0,0.35059138]
[1740418874270,0.00010383,95250.0,95249.0,0.34059138]
[1740418874448,0.00010383,95250.0,95249.0,0.49907238]
[1740418874684,0.00010383,95250.0,95249.0,0.50607238]
[1740418875164,0.00010383,95250.0,95249.0,0.50507238]
[1740418875365,0.00010383,95250.0,95249.0,0.51207238]
[1740418875366,0.00095363,95250.0,95249.0,0.51207238]
[1740418875605,6.3e-07,95250.0,95249.0,0.51207238]
[1740418876220,0.0008496,95274.0,95273.0,0.157442]
[1740418876467,0.00127976,95274.0,95273.0,0.40652854]
[1740418877670,0.00127976,95274.0,95273.0,0.41252854]
[1740418877899,0.00127976,95274.0,95273.0,0.41952854]
[1740418880351,0.00127976,95274.0,95273.0,0.302342]
[1740418880522,0.00412112,95274.0,95273.0,0.302342]
[1740418880736,0.00127976,95274.0,95273.0,0.302342]
[1740418881068,0.00127976,95274.0,95273.0,0.1449]
[1740418881270,0.15871976,95274.0,95273.0,0.1449]
[1740418881469,0.15871976,95274.0,95273.0,0.013]
[1740418881675,0.41421187,95274.0,95273.0,0.013]
[1740418882843,0.31156618,95274.0,95273.0,0.013]
[1740418883042,0.31156618,95274.0,95273.0,0.007]
[1740418883403,0.157462,95261.0,95255.0,0.00912]
[1740418883804,0.15747,95256.0,95255.0,0.00912]
[1740418884203,0.16005082,95256.0,95255.0,0.00912]
[1740418884403,0.16005082,95256.0,95236.0,0.0458]
[1740418884404,0.00258082,95256.0,95236.0,0.0458]
[1740418884634,0.157483,95248.0,95238.0,0.00912]
[1740418884830,0.157481,95250.0,95236.0,0.0458]
[1740418885045,0.00257203,95247.0,95236.0,0.0458]
[1740418885213,0.209971,95252.0,95236.0,0.0458]
[1740418885415,0.00257604,95246.0,95236.0,0.05492]
[1740418885780,0.209971,95252.0,95236.0,0.05492]
[1740418885903,0.00257543,95245.0,95236.0,0.05492]
[1740418886099,0.157496,95241.0,95236.0,0.05492]
[1740418886309,0.00257408,95240.0,95236.0,0.15756569]
[1740418886533,0.00257408,95240.0,95236.0,0.14844569]
[1740418886935,0.01371468,95241.0,95236.0,0.14844569]
[1740418887139,0.157494,95242.0,95241.0,0.005]
[1740418887360,0.367485,95242.0,95241.0,0.004]
[1740418887535,0.00257541,95242.0,95241.0,0.004]
[1740418887734,0.01403722,95247.0,95241.0,0.004]
[1740418888023,0.209953,95260.0,95236.0,0.14854952]
[1740418888215,0.157475,95254.0,95239.0,0.157497]
[1740418888393,0.359924,95273.0,95237.0,0.00912]
[1740418888593,0.15,95271.0,95237.0,0.00912]
[1740418888795,0.01356174,95273.0,95251.0,0.0785]
[1740418888996,0.0008495,95286.0,95253.0,0.01454085]
[1740418889198,0.0008495,95286.0,95254.0,0.1132353]
[1740418889417,0.209899,95284.0,95254.0,0.1132353]
[1740418889621,0.209905,95281.0,95262.0,0.157459]
[1740418889800,0.0008495,95286.0,95263.0,0.10264569]
[1740418890003,0.157437,95276.0,95263.0,0.10264569]
[1740418890664,0.157444,95272.0,95263.0,0.10264569]
[1740418890872,0.0008496,95274.0,95263.0,0.10264569]
[1740418890990,0.0008496,95274.0,95265.0,0.157454]
[1740418891185,0.01470522,95274.0,95267.0,0.209936]
[1740418891387,0.0008496,95274.0,95273.0,0.1243]
[1740418892156,0.00127976,95274.0,95273.0,0.0462]
[1740418892294,0.01529203,95274.0,95273.0,0.0462]
[1740418892505,0.00127976,95274.0,95273.0,0.203642]
[1740418892904,0.00127976,95274.0,95273.0,0.0462]
[1740418893593,0.00127976,95274.0,95273.0,0.0492]
[1740418894135,0.00127976,95274.0,95273.0,0.32382854]
[1740418894660,0.00127976,95274.0,95273.0,0.32782854]
[1740418895091,0.00127976,95274.0,95273.0,0.32382854]
[1740418895580,0.00127976,95274.0,95273.0,0.33082854]
[1740418895757,0.00127976,95274.0,95273.0,0.32782854]
[1740418895963,0.00127976,95274.0,95273.0,0.33382854]
[1740418897614,0.00127976,95274.0,95273.0,0.41302854]
[1740418898357,0.00127976,95274.0,95273.0,0.40602854]
[1740418898807,0.00127976,95274.0,95273.0,0.40702854]
[1740418899062,0.00127976,95274.0,95273.0,0.41402854]
[1740418899372,0.00127976,95274.0,95273.0,0.58474285]
[1740418901607,0.00127976,95274.0,95273.0,0.59386285]
[1740418902179,0.00127976,95274.0,95273.0,0.91626285]
[1740418904553,0.00127976,95274.0,95273.0,0.91630285]
[1740418906376,0.00127976,95274.0,95273.0,0.76630285]
[1740418906958,0.00127976,95274.0,95273.0,0.91630285]
[1740418907158,0.00127976,95274.0,95273.0,0.90714285]
[1740418907277,0.00127976,95274.0,95273.0,0.91630285]
[1740418909630,0.00127976,95274.0,95273.0,0.59970085]
[1740418909954,0.00127976,95274.0,95273.0,0.60882085]
[1740418910436,0.00127976,95274.0,95273.0,0.59970085]
[1740418910635,0.00127976,95274.0,95273.0,0.60882085]
[1740418910874,0.00127976,95274.0,95273.0,0.59428]
[1740418911095,0.00127976,95274.0,95273.0,0.58516]
[1740418911404,0.00127976,95274.0,95273.0,0.41243431]
[1740418911574,0.00127976,95274.0,95273.0,0.36623431]
[1740418911937,0.15871976,95274.0,95273.0,0.3364]
[1740418912144,0.15871976,95274.0,95273.0,0.014]
[1740418912372,0.16140629,95274.0,95273.0,0.007]
[1740418912614,0.16140629,95274.0,95273.0,0.012]
[1740418912845,0.157452,95267.0,95266.0,0.23588]
[1740418913276,0.16011743,95267.0,95266.0,0.23588]
[1740418913500,0.157478,95251.0,95242.0,0.3224]
[1740418913732,0.157478,95251.0,95247.0,0.00912]
[1740418914041,0.157478,95251.0,95242.0,0.3224]
[1740418914042,0.16013317,95251.0,95242.0,0.3224]
[1740418914248,0.1738454,95251.0,95242.0,0.3224]
[1740418914481,0.1738454,95251.0,95250.0,0.0086996]
[1740418915237,0.0163674,95251.0,95250.0,0.0086996]
[1740418915424,0.1738454,95251.0,95250.0,0.0086996]
[1740418915567,0.0163674,95251.0,95250.0,0.0086996]
[1740418916113,0.00265517,95251.0,95250.0,0.1731796]
[1740418916426,0.00807418,95277.0,95250.0,0.13288614]
[1740418916703,0.15745,95268.0,95251.0,0.43958654]
[1740418916964,0.209903,95282.0,95256.0,0.157469]
[1740418917213,0.00266213,95267.0,95256.0,0.10264569]
[1740418917441,0.0823038,95283.0,95256.0,0.10264569]
[1740418917655,0.157453,95267.0,95256.0,0.10264569]
[1740418917887,0.157446,95271.0,95257.0,0.157468]
[1740418918112,0.00266507,95266.0,95257.0,0.157468]
[1740418918324,0.157446,95271.0,95258.0,0.157465]
[1740418918529,0.00265772,95265.0,95256.0,0.10264569]
[1740418918733,0.157455,95265.0,95256.0,0.10264569]
[1740418918866,0.157457,95264.0,95256.0,0.10264569]
[1740418919067,0.209918,95275.0,95257.0,0.001]
[1740418919270,0.157452,95267.0,95256.0,0.10464569]
[1740418919471,0.157453,95267.0,95256.0,0.10464569]
[1740418919672,0.157454,95266.0,95256.0,0.10564569]
[1740418919871,0.157448,95270.0,95256.0,0.10664569]
[1740418920093,0.157447,95270.0,95257.0,0.157468]
[1740418920463,0.157447,95270.0,95258.0,0.157465]
[1740418920643,0.209916,95277.0,95256.0,0.17864569]
[1740418920816,0.209906,95281.0,95258.0,0.10264569]
[1740418920997,0.0026555,95276.0,95265.0,0.209939]
[1740418921195,0.157432,95280.0,95268.0,0.15745]
[1740418921404,0.00265775,95279.0,95259.0,0.3224]
[1740418921737,0.00265775,95279.0,95278.0,0.157434]
[1740418921922,0.01384375,95283.0,95282.0,0.157427]
[1740418922684,0.01384375,95283.0,95278.0,0.31255569]
[1740418922930,0.01384375,95283.0,95277.0,0.00912]
[1740418923134,0.01384375,95283.0,95282.0,0.004]
[1740418923365,0.01384375,95283.0,95277.0,0.00912]
[1740418923725,0.01384375,95283.0,95282.0,0.005]
[1740418923923,0.17126875,95283.0,95282.0,0.005]
[1740418924711,0.17117628,95283.0,95282.0,0.005]
[1740418924909,0.209907,95281.0,95267.0,0.00916]
[1740418925149,0.157433,95279.0,95268.0,0.10264569]
[1740418925398,0.157433,95279.0,95277.0,0.005]
[1740418925554,0.209912,95278.0,95277.0,0.005]
[1740418925753,0.01375128,95283.0,95267.0,0.00916]
[1740418925982,0.209921,95274.0,95257.0,0.05746]
[1740418926180,0.209921,95274.0,95267.0,0.003]
[1740418926406,0.15745,95268.0,95267.0,0.003]
[1740418926583,0.209931,95270.0,95268.0,0.002]
[1740418926784,0.01375128,95283.0,95268.0,0.002]
[1740418926989,0.209911,95279.0,95268.0,0.002]
[1740418927192,0.157427,95282.0,95268.0,0.159449]
[1740418927397,0.157432,95279.0,95268.0,0.002]
[1740418927712,0.01375128,95283.0,95268.0,0.002]
[1740418927910,0.157435,95277.0,95267.0,0.001]
[1740418928113,0.01375128,95283.0,95267.0,0.001]
[1740418928454,0.157439,95275.0,95262.0,0.157459]
[1740418928639,0.209913,95278.0,95268.0,0.006]
[1740418928799,0.209913,95278.0,95268.0,0.008]
[1740418929000,0.209907,95280.0,95268.0,0.006]
[1740418929189,0.15744,95275.0,95263.0,0.10264569]
[1740418929391,0.209913,95278.0,95267.0,0.002]
[1740418929598,0.209907,95280.0,95267.0,0.002]
[1740418929796,0.157441,95274.0,95267.0,0.002]
[1740418930245,0.157441,95274.0,95268.0,0.003]
[1740418930572,0.01375128,95283.0,95268.0,0.003]
[1740418930776,0.157445,95272.0,95268.0,0.003]
[1740418931524,0.157448,95269.0,95268.0,0.003]
[1740418932065,0.08,95276.0,95268.0,0.005]
[1740418932266,0.157448,95269.0,95268.0,0.005]
[1740418932462,0.209929,95271.0,95252.0,0.00912]
[1740418932463,0.15745,95268.0,95267.0,0.005]
[1740418933009,0.157462,95261.0,95252.0,0.00912]
[1740418933279,0.08,95276.0,95252.0,0.00912]
[1740418933553,0.157466,95259.0,95252.0,0.00912]
[1740418933883,0.10264569,95275.0,95252.0,0.00912]
[1740418934056,0.15,95274.0,95252.0,0.00912]
[1740418934194,0.157451,95268.0,95267.0,0.0016992]
[1740418935494,0.157451,95268.0,95267.0,0.0036992]
[1740418936316,0.307451,95268.0,95267.0,0.0036992]
[1740418936524,0.49309669,95268.0,95267.0,0.0056992]
[1740418936725,0.49309669,95268.0,95267.0,0.0036992]
[1740418936913,0.49309669,95268.0,95267.0,0.0016992]
[1740418937113,0.15,95267.0,95242.0,0.3224]
[1740418937320,0.307478,95251.0,95242.0,0.3224]
[1740418938479,0.157518,95227.0,95226.0,0.02093586]
[1740418938679,0.15,95250.0,95221.0,0.0016992]
[1740418938680,0.157526,95222.0,95221.0,0.0016992]
[1740418939072,0.157526,95222.0,95221.0,0.00212936]
[1740418939847,0.157526,95222.0,95221.0,0.00512936]
[1740418941239,0.17106363,95222.0,95221.0,0.00212936]
[1740418941980,0.17106363,95222.0,95221.0,0.00612936]
[1740418942372,0.16938363,95222.0,95221.0,0.00212936]
[1740418942802,0.42202932,95222.0,95221.0,0.00312936]
[1740418943936,0.42202932,95222.0,95221.0,1e-08]
[1740418944783,0.307536,95216.0,95215.0,0.0016982]
[1740418945005,0.307536,95216.0,95215.0,0.00179067]
[1740418946528,0.309536,95216.0,95215.0,0.00179067]
[1740418947988,0.307536,95216.0,95215.0,0.00179067]
[1740418948205,0.309536,95216.0,95215.0,0.00179067]
[1740418948439,0.310536,95216.0,95215.0,0.00179067]
[1740418948696,0.308536,95216.0,95215.0,0.00179067]
[1740418949104,0.310536,95216.0,95215.0,0.00179067]
[1740418949487,0.308536,95216.0,95215.0,0.00179067]
[1740418950274,0.310536,95216.0,95215.0,0.00179067]
[1740418950646,0.152,95216.0,95215.0,0.00179067]
[1740418950844,0.003,95216.0,95215.0,0.00179067]
[1740418951175,0.160536,95216.0,95215.0,0.00179067]
[1740418951498,0.158536,95216.0,95215.0,0.00179067]
[1740418951691,0.157536,95216.0,95215.0,0.00179067]
[1740418951943,0.159536,95216.0,95215.0,0.00179067]
[1740418952351,0.157336,95216.0,95215.0,0.00179067]
[1740418952601,0.157336,95216.0,95215.0,0.00159067]
[1740418953369,0.157534,95217.0,95215.0,0.00159067]
[1740418953594,0.210046,95218.0,95215.0,0.00159067]
[1740418953798,0.157536,95216.0,95215.0,0.00159067]
[1740418954926,0.10267802,95218.0,95215.0,0.00159067]
[1740418955065,0.157536,95216.0,95215.0,0.00159067]
[1740418955474,0.01353763,95222.0,95215.0,0.00159067]
[1740418955716,0.15,95224.0,95215.0,0.00159067]
[1740418956270,0.079,95256.0,95217.0,0.08408484]
[1740418956450,0.01311222,95224.0,95217.0,0.40648484]
[1740418956673,0.002,95222.0,95217.0,0.40648484]
[1740418957621,0.0038,95222.0,95217.0,0.40648484]
[1740418957825,0.002,95222.0,95217.0,0.40648484]
[1740418958184,0.157313,95230.0,95217.0,0.40748484]
[1740418958427,0.210012,95233.0,95217.0,0.41128484]
[1740418958674,0.157511,95231.0,95217.0,0.56761884]
[1740418958788,0.157311,95231.0,95217.0,0.41008484]
[1740418959028,0.0006499,95224.0,95217.0,0.56761884]
[1740418959262,0.0006499,95224.0,95219.0,0.15753]
[1740418959484,0.0006499,95224.0,95223.0,0.237424]
[1740418959827,0.0006499,95224.0,95223.0,0.237224]
[1740418960058,0.0004499,95224.0,95223.0,0.286724]
[1740418960295,0.0004499,95224.0,95223.0,0.286524]
[1740418960542,0.0004499,95224.0,95223.0,0.1294]
[1740418961243,0.209996,95240.0,95223.0,0.1294]
[1740418961481,0.240347,95263.0,95223.0,0.1324]
[1740418961713,0.01327272,95240.0,95230.0,0.157512]
[1740418961947,0.307489,95245.0,95225.0,0.210027]
[1740418962202,0.15,95243.0,95227.0,0.210022]
[1740418962409,0.15,95243.0,95230.0,0.157513]
[1740418962647,0.15,95243.0,95223.0,0.1294]
[1740418962887,0.157507,95234.0,95223.0,0.1294]
[1740418963327,0.002,95240.0,95223.0,0.1294]
[1740418963532,0.157505,95235.0,95223.0,0.1292]
[1740418964829,0.157505,95235.0,95223.0,0.1322]
[1740418965070,0.209997,95240.0,95223.0,0.1322]
[1740418965305,0.157502,95237.0,95223.0,0.1352]
[1740418965514,0.15749,95244.0,95224.0,0.10264569]
[1740418965721,0.16624897,95245.0,95225.0,0.15752]
[1740418965925,0.16624897,95245.0,95225.0,0.10264569]
[1740418966122,0.157498,95239.0,95225.0,0.10264569]
[1740418966725,0.1575,95238.0,95225.0,0.10264569]
[1740418966961,0.01624897,95245.0,95225.0,0.10264569]
[1740418967137,0.157501,95238.0,95225.0,0.10264569]
[1740418967279,0.209996,95240.0,95225.0,0.10264569]
[1740418967510,0.01324897,95245.0,95225.0,0.10264569]
[1740418967737,0.157499,95239.0,95225.0,0.10264569]
[1740418968653,0.157499,95239.0,95225.0,0.10364569]
[1740418968881,0.157501,95237.0,95225.0,0.10364569]
[1740418969321,0.1575,95238.0,95225.0,0.10364569]
[1740418969549,0.1573,95238.0,95225.0,0.10464569]
[1740418970401,0.157498,95239.0,95225.0,0.10464569]
[1740418970630,0.157498,95239.0,95225.0,0.10364569]
[1740418970854,0.157498,95239.0,95225.0,0.10564569]
[1740418971097,0.1583479,95239.0,95225.0,0.10364569]
[1740418971331,0.1583479,95239.0,95225.0,0.10264569]
[1740418971789,0.157501,95237.0,95225.0,0.10264569]
[1740418972029,0.1575,95238.0,95225.0,0.10664569]
[1740418972273,0.1575,95238.0,95225.0,0.10464569]
[1740418972753,0.1575,95238.0,95225.0,0.10264569]
[1740418972979,0.1583489,95239.0,95225.0,0.10264569]
[1740418973154,0.1583489,95239.0,95225.0,0.26116669]
[1740418973497,0.1583489,95239.0,95225.0,0.26216669]
[1740418973933,0.157502,95237.0,95225.0,0.10464569]
[1740418974401,0.1575,95238.0,95225.0,0.10364569]
[1740418974602,0.0008499,95239.0,95225.0,0.10364569]
[1740418974803,0.0008499,95239.0,95225.0,0.10464569]
[1740418974940,0.0008499,95239.0,95225.0,0.10444569]
[1740418975143,0.0008499,95239.0,95225.0,0.10644569]
[1740418975361,0.157501,95238.0,95225.0,0.10444569]
[1740418975618,0.157503,95236.0,95225.0,0.10244569]
[1740418975820,0.21,95238.0,95225.0,0.10344569]
[1740418975998,0.1575,95238.0,95225.0,0.10344569]
[1740418976241,0.157502,95237.0,95226.0,0.00912]
[1740418976496,0.0008499,95239.0,95225.0,0.10244569]
[1740418976709,0.1575,95238.0,95227.0,0.00912]
[1740418976951,0.2108479,95239.0,95227.0,0.00912]
[1740418977199,0.21,95238.0,95223.0,0.4516]
[1740418977451,0.15752,95226.0,95223.0,0.4516]
[1740418977685,0.157518,95227.0,95226.0,0.002]
[1740418977887,0.15752,95226.0,95225.0,0.002]
[1740418978158,0.157516,95229.0,95223.0,0.1292]
[1740418978365,0.157518,95227.0,95223.0,0.1292]
[1740418978595,0.157517,95228.0,95223.0,0.1342]
[1740418979024,0.157519,95227.0,95225.0,0.005]
[1740418979348,0.21,95238.0,95225.0,0.005]
[1740418979555,0.0008499,95239.0,95225.0,0.005]
[1740418979761,0.0008499,95239.0,95225.0,0.16252]
[1740418980101,0.0008499,95239.0,95226.0,0.210026]
[1740418980281,0.0008499,95239.0,95225.0,0.11264569]
[1740418980576,0.0008499,95239.0,95225.0,0.10764569]
[1740418980783,0.0008499,95239.0,95233.0,0.157507]
[1740418980990,0.0008499,95239.0,95227.0,0.210024]
[1740418981192,0.0008499,95239.0,95229.0,0.01454085]
[1740418981410,0.0008499,95239.0,95238.0,0.2852]
[1740418981578,0.0008499,95239.0,95238.0,0.38784569]
[1740418981786,0.0008499,95239.0,95238.0,0.1277]
[1740418982519,0.0008499,95239.0,95238.0,0.2922]
[1740418982949,0.0008499,95239.0,95238.0,0.1347]
[1740418983461,0.0008499,95239.0,95238.0,0.1407]
[1740418983897,0.0008499,95239.0,95238.0,0.1337]
[1740418984097,0.0008499,95239.0,95238.0,0.1397]
[1740418984347,0.00375645,95239.0,95238.0,0.1397]
[1740418984561,0.0008499,95239.0,95238.0,0.40838654]
[1740418984964,0.0008499,95239.0,95238.0,0.73678654]
[1740418985968,0.0008499,95239.0,95238.0,0.74590654]
[1740418986558,0.0008499,95239.0,95238.0,0.76706553]
[1740418988976,0.0008499,95239.0,95238.0,0.58590468]
[1740418989187,0.0008499,95239.0,95238.0,0.59502468]
[1740418989621,0.00376929,95239.0,95238.0,0.59502468]
[1740418989826,0.0008499,95239.0,95238.0,0.48325899]
[1740418990029,0.17168318,95239.0,95238.0,0.41157899]
[1740418990235,0.0008499,95239.0,95238.0,0.41157899]
[1740418990462,0.00377073,95239.0,95238.0,0.41157899]
[1740418990669,0.0008499,95239.0,95238.0,0.41157899]
[1740418990850,0.00376413,95239.0,95238.0,0.41157899]
[1740418990989,0.0008499,95239.0,95238.0,0.41157899]
[1740418991210,0.00376411,95239.0,95238.0,0.41157899]
[1740418991617,0.01382113,95239.0,95238.0,0.41157899]
[1740418992971,0.01673534,95239.0,95238.0,0.41157899]
[1740418994173,0.17131913,95239.0,95238.0,0.41157899]
[1740418994373,0.17131913,95239.0,95238.0,0.40245899]
[1740418994606,0.17423334,95239.0,95238.0,0.40245899]
[1740418994805,0.17423334,95239.0,95238.0,0.35555899]
[1740418995753,0.17423334,95239.0,95238.0,0.012]
[1740418997272,0.17423334,95239.0,95238.0,0.006]
[1740418997677,0.17423334,95239.0,95238.0,0.002]
[1740418998560,0.17423334,95239.0,95238.0,0.004]
[1740418999915,0.01673534,95239.0,95238.0,0.004]
[1740419000118,0.17423334,95239.0,95238.0,0.004]
[1740419000325,0.01673534,95239.0,95238.0,0.004]
[1740419000772,0.17423334,95239.0,95238.0,0.004]
[1740419001840,0.01673534,95239.0,95238.0,0.004]
[1740419002252,0.01382113,95239.0,95238.0,0.0511]
[1740419002712,0.01672935,95239.0,95238.0,0.0511]
[1740419003130,0.00375812,95239.0,95238.0,0.31271564]
[1740419003338,0.00375812,95239.0,95238.0,0.32578654]
[1740419003555,0.0008499,95239.0,95238.0,0.72918654]
[1740419004127,0.0008499,95239.0,95238.0,0.72718654]
[1740419004824,0.0008499,95239.0,95238.0,0.71976569]
[1740419005006,0.0008499,95239.0,95238.0,0.73376569]
[1740419006276,0.0008499,95239.0,95238.0,0.57626569]
[1740419006481,0.0008499,95239.0,95238.0,0.47362]
[1740419007144,0.0008499,95239.0,95238.0,0.46662]
[1740419007348,0.0008499,95239.0,95238.0,0.4645]
[1740419007529,0.0008499,95239.0,95238.0,0.47362]
[1740419007726,0.00376774,95239.0,95238.0,0.47362]
[1740419008504,0.16126574,95239.0,95238.0,0.34552]
[1740419008710,0.16126574,95239.0,95238.0,0.3364]
[1740419009095,0.16126574,95239.0,95238.0,0.014]
[1740419011553,0.16126574,95239.0,95238.0,0.0156994]
[1740419012556,0.16126574,95239.0,95238.0,0.0086994]
[1740419012837,0.16126574,95239.0,95238.0,0.0116994]
[1740419013037,0.00376774,95239.0,95238.0,0.0116994]
[1740419013240,0.16126574,95239.0,95238.0,0.0086994]
[1740419013461,0.00376774,95239.0,95238.0,0.0106994]
[1740419014138,0.00376774,95239.0,95238.0,0.0086994]
[1740419014344,0.16126574,95239.0,95238.0,0.0086994]
[1740419014565,0.00376774,95239.0,95238.0,0.0046994]
[1740419014936,0.00376774,95239.0,95238.0,0.0076994]
[1740419015517,0.00376774,95239.0,95238.0,0.0046994]
[1740419015753,0.16126574,95239.0,95238.0,0.0086994]
[1740419015950,0.16126574,95239.0,95238.0,0.0056994]
[1740419016158,0.16126574,95239.0,95238.0,0.0096994]
[1740419018804,0.16126574,95239.0,95238.0,0.0056994]
[1740419019007,0.16126574,95239.0,95238.0,0.0086994]
[1740419019211,0.16126574,95239.0,95238.0,0.0046994]
[1740419019415,0.16126574,95239.0,95238.0,0.0076994]
[1740419019810,0.16126574,95239.0,95238.0,0.0046994]
[1740419020040,0.16126574,95239.0,95238.0,0.0016994]
[1740419020198,0.16126574,95239.0,95238.0,0.0056994]
[1740419021035,0.00376774,95239.0,95238.0,0.0056994]
[1740419021678,0.16126574,95239.0,95238.0,0.0056994]
[1740419021894,0.00376774,95239.0,95238.0,0.0056994]
[1740419022087,0.00376774,95239.0,95238.0,0.2130994]
[1740419022287,0.0008499,95239.0,95238.0,0.2130994]
[1740419022666,0.0008499,95239.0,95238.0,0.0555994]
[1740419023484,0.0008499,95239.0,95238.0,0.2130994]
[1740419023955,0.0008499,95239.0,95238.0,0.31574509]
[1740419025211,0.0008499,95239.0,95238.0,0.31374509]
[1740419025827,0.0008499,95239.0,95238.0,0.31774509]
[1740419026206,0.15,95264.0,95238.0,0.31174509]
[1740419026408,0.3265,95284.0,95238.0,0.16824509]
[1740419026612,0.15748,95250.0,95239.0,0.157498]
[1740419026933,0.157479,95251.0,95239.0,0.157497]
[1740419027173,0.157479,95251.0,95239.0,0.209998]